fUST/lending_fUST_20240210
["ID","MTS","AMOUNT","RATE_DAILY","PERIOD"]
[313682973,1707579038849,-1047.69,0.00020289,2]
[313682974,1707579038858,-500.0,0.00020289,2]
[313682975,1707579038868,-2099.26,0.00020289,2]
[313682976,1707579038877,-168.18592306,0.00020289,2]
[313682977,1707579038887,-500.0,0.00020289,2]
[313682978,1707579038897,-1966.49,0.00020289,2]
[313682979,1707579038907,-35219.20839498,0.0002029,2]
[313682980,1707579038917,-296.28297321,0.00020291,2]
[313682981,1707579038926,-1051.64235556,0.00020291,2]
[313682982,1707579038936,-3849.87588507,0.00020291,2]
[313682983,1707579038946,-405.62871077,0.00020291,2]
[313682984,1707579038955,-158.58276432,0.00020291,2]
[313682985,1707579038965,-161.20955739,0.00020291,2]
[313682986,1707579038975,-259.80436975,0.00020292,2]
[313682987,1707579038985,-593.86468013,0.00020292,2]
[313682988,1707579038994,-180.09680984,0.00020292,2]
[313682989,1707579039002,-358.56819931,0.00020292,2]
[313682990,1707579039011,-678.94138998,0.00020292,2]
[313682991,1707579039021,-245.22692035,0.00020292,2]
[313682992,1707579039030,-260.90028445,0.00020292,2]
[313682993,1707579039039,-569.52019291,0.00020292,2]
[313682994,1707579039049,-3121.12632416,0.00020292,2]
[313682995,1707579039058,-277.90995619,0.00020292,2]
[313682996,1707579039067,-500.0,0.00020292,2]
[313682997,1707579039077,-500.0,0.00020292,2]
[313682998,1707579039086,-607.41623505,0.00020292,2]
[313682999,1707579039096,-500.0,0.00020292,2]
[313683000,1707579039105,-345.14306486,0.00020292,2]
[313683001,1707579039115,-534.79218378,0.00020292,2]
[313683002,1707579039124,-1048.46,0.00020292,2]
[313683003,1707579039134,-5330.04,0.00020292,2]
[313683004,1707579039143,-686.65,0.00020292,2]
[313683005,1707579039153,-7012.69,0.00020292,2]
[313683006,1707579039163,-500.0,0.00020292,2]
[313683007,1707579039172,-500.0,0.00020292,2]
[313683008,1707579039182,-2107.5,0.00020292,2]
[313683009,1707579039191,-2698.5,0.00020292,2]
[313683010,1707579039201,-500.0,0.00020292,2]
[313683011,1707579039210,-1573.15,0.00020292,2]
[313683012,1707579039220,-1424.86,0.00020292,2]
[313683013,1707579039229,-500.0,0.00020292,2]
[313683014,1707579039242,-1217.53,0.00020292,2]
[313683015,1707579039252,-500.0,0.00020292,2]
[313683016,1707579039262,-11224.63,0.00020292,2]
[313683017,1707579039271,-576.66856581,0.00020292,2]
[313683018,1707579039282,-500.0,0.00020292,2]
[313683019,1707579039292,-684.66,0.00020292,2]
[313683020,1707579039301,-284.79395808,0.00020292,2]
[313683021,1707579039312,-167.07364334,0.00020293,2]
[313683022,1707579039321,-500.0,0.00020293,2]
[313683023,1707579039331,-500.0,0.00020293,2]
[313683024,1707579039341,-500.0,0.00020293,2]
[313683025,1707579039350,-500.0,0.00020293,2]
[313683026,1707579039360,-500.0,0.00020293,2]
[313683027,1707579039369,-904.36,0.00020293,2]
[313683028,1707579039379,-416.71414332,0.00020293,2]
[313683029,1707579039389,-602.01096838,0.00020293,2]
[313683030,1707579039398,-500.0,0.00020293,2]
[313683031,1707579039407,-555.08351524,0.00020293,2]
[313683032,1707579039418,-235.3838657,0.00020293,2]
[313683033,1707579039429,-500.0,0.00020293,2]
[313683034,1707579039439,-500.0,0.00020293,2]
[313683035,1707579039448,-500.0,0.00020293,2]
[313683036,1707579039457,-500.0,0.00020293,2]
[313683037,1707579039466,-500.0,0.00020293,2]
[313683038,1707579039475,-500.96304012,0.00020293,2]
[313683039,1707579039485,-1184.56,0.00020293,2]
[313683040,1707579039495,-529.04348599,0.00020293,2]
[313683041,1707579039504,-500.0,0.00020293,2]
[313683042,1707579039513,-500.0,0.00020293,2]
[313683043,1707579039523,-9825.02,0.00020293,2]
[313683044,1707579039534,-155.08064193,0.00020293,2]
[313683045,1707579039543,-574.95,0.00020293,2]
[313683046,1707579039553,-500.0,0.00020293,2]
[313683047,1707579039564,-543.25,0.00020293,2]
[313683048,1707579039574,-5676.77,0.00020293,2]
[313683049,1707579039584,-964.0,0.00020293,2]
[313683050,1707579039593,-500.0,0.00020293,2]
[313683051,1707579039602,-500.0,0.00020293,2]
[313683052,1707579039611,-500.0,0.00020293,2]
[313683053,1707579039621,-500.0,0.00020293,2]
[313683054,1707579039630,-207.22040677,0.00020293,2]
[313683055,1707579039640,-500.0,0.00020293,2]
[313683056,1707579039649,-500.0,0.00020293,2]
[313683057,1707579039658,-500.0,0.00020293,2]
[313683058,1707579039668,-500.0,0.00020293,2]
[313683059,1707579039677,-500.0,0.00020293,2]
[313683060,1707579039687,-500.0,0.00020293,2]
[313683061,1707579039696,-500.0,0.00020293,2]
[313683062,1707579039705,-56621.70829762,0.00020294,2]
[313683063,1707579039720,-1766.78114445,0.00020294,2]
[313683064,1707579040068,-475.22820122,0.00020294,2]
[313683065,1707579040078,-155.08064093,0.00020297,2]
[313683066,1707579040088,-597.52260024,0.00020302,2]
[313683067,1707579040098,-1303.9456209,0.00020383,2]
[313683068,1707579040109,-1762.55382035,0.00020383,2]
[313683102,1707579043217,-771.34964187,0.00020292,2]
[313683115,1707579046253,-345.58677069,0.00020292,2]
[313683116,1707579046309,-8298.70358744,0.00020292,2]
[313683117,1707579046319,-556.25323954,0.00020293,2]
[313683118,1707579046329,-154.92253873,0.00020382,2]
[313683119,1707579046338,-7173.11055875,0.00020383,2]
[313683120,1707579046348,-1087.5,0.00020383,2]
[313683121,1707579046357,-19774.89,0.00020383,2]
[313683122,1707579046366,-3706.06,0.00020392,3]
[313683123,1707579046375,-500.0,0.00020399,2]
[313683124,1707579046385,-8256.88003322,0.00020399,2]
[313683166,1707579378103,1076.62,0.00029,30]
[313683187,1707579550181,3457.32948495,0.00029,30]
[313683220,1707579644370,276.38935158,0.00018,2]
[313683221,1707579644399,1500.0,0.00018,2]
[313683239,1707579769619,2000.0,0.00017,2]
[313683243,1707579833809,13000.0,0.0001732,2]
[313683244,1707579833838,9000.0,0.0001732,2]
[313683255,1707580036084,-295.90443276,0.00017303,2]
[313683256,1707580036105,-261.98617996,0.00017303,2]
[313683257,1707580036125,-323.90420148,0.00017304,2]
[313683258,1707580036145,-154.90705577,0.00017304,2]
[313683259,1707580036165,-500.0,0.00017304,2]
[313683260,1707580036184,-906.67733416,0.00017305,2]
[313683261,1707580036204,-2607.2690256,0.00017305,2]
[313683262,1707580036223,-261.17070193,0.00017306,2]
[313683263,1707580036243,-2952.44104263,0.00017306,2]
[313683264,1707580039088,-168.670348,0.00017306,2]
[313683276,1707580148102,-1948.0276469,0.00017298,2]
[313683277,1707580148124,-1746.49526169,0.00017299,2]
[313683278,1707580148143,-454.5514813,0.000173,2]
[313683279,1707580148165,-1514.42809532,0.0001732,2]
[313683280,1707580149087,-1385.57190468,0.0001732,2]
[313683281,1707580149108,-295.90443276,0.00017664,2]
[313683282,1707580149127,-323.90420148,0.00017664,2]
[313683283,1707580149147,-154.90705577,0.00017664,2]
[313683284,1707580149170,-200.0,0.00017665,2]
[313683285,1707580149190,-83.89856128,0.00017665,2]
[313683286,1707580156077,-116.10143872,0.00017665,2]
[313683287,1707580156097,-733.17218791,0.00018628,2]
[313683288,1707580156117,-155.65048837,0.00018659,2]
[313683289,1707580156136,-905.68060924,0.00018659,2]
[313683290,1707580156158,-245.37435519,0.00018659,2]
[313683291,1707580156177,-500.0,0.00018659,2]
[313683292,1707580156197,-260.81014529,0.00018659,2]
[313683293,1707580156217,-2078.85625254,0.00018659,2]
[313683294,1707580156237,-155.46374415,0.0001866,2]
[313683295,1707580156256,-1900.55124534,0.0001866,2]
[313683296,1707580156275,-55511.0300876,0.00018661,2]
[313683297,1707580156295,-4180.75544824,0.00018664,2]
[313683298,1707580156314,-167.07364334,0.00018669,2]
[313683299,1707580156336,-1051.64235556,0.00018669,2]
[313683300,1707580156355,-593.86468013,0.00018669,2]
[313683301,1707580156375,-158.58276432,0.00018669,2]
[313683302,1707580156396,-180.09680984,0.00018669,2]
[313683303,1707580156417,-569.52019291,0.00018669,2]
[313683304,1707580156437,-161.20955739,0.00018669,2]
[313683305,1707580156459,-358.56819931,0.00018669,2]
[313683306,1707580156479,-296.28297321,0.00018669,2]
[313683307,1707580156499,-405.62871077,0.00018669,2]
[313683308,1707580156519,-678.94138998,0.00018669,2]
[313683309,1707580156539,-155.71480312,0.00018669,2]
[313683310,1707580156566,-155.66439101,0.00018669,2]
[313683311,1707580156587,-170.50784405,0.00018669,2]
[313683312,1707580156609,-563.21509038,0.00018669,2]
[313683313,1707580156629,-154.90705577,0.00018669,2]
[313683314,1707580156655,-154.90705577,0.00018669,2]
[313683315,1707580156677,-156.30301027,0.00018669,2]
[313683316,1707580156697,-1661.66729851,0.0001867,2]
[313683323,1707580193940,155.16684718,0.00017665,2]
[313683325,1707580213935,155.63570958,0.00017665,2]
[313683326,1707580222440,155.21653651,0.00017665,2]
[313683327,1707580229774,8533.98090673,0.00017665,2]
[313683341,1707580232411,-1789.02663126,0.00017665,2]
[313683343,1707580232420,-155.07598723,0.00018577,2]
[313683345,1707580232429,-323.90420148,0.00018668,2]
[313683347,1707580232439,-154.90705577,0.00018668,2]
[313683349,1707580232448,-1182.0388449,0.00018669,2]
[313683352,1707580232459,-652.85347624,0.00018669,2]
[313683355,1707580232471,-110.38320958,0.00018669,2]
[313683358,1707580232480,-295.35395435,0.00018669,2]
[313683361,1707580232489,-1751.45648968,0.00018669,2]
[313683364,1707580232499,-1459.45902565,0.0001867,2]
[313683367,1707580232508,-713.047417,0.000189,2]
[313683370,1707580232518,-416.71414332,0.00019178,2]
[313683372,1707580232527,-500.0,0.00019178,2]
[313683374,1707580232536,-555.08351524,0.00019178,2]
[313683375,1707580232545,-235.3838657,0.00019178,2]
[313683376,1707580232554,-500.0,0.00019178,2]
[313683378,1707580232566,-500.0,0.00019178,2]
[313683380,1707580232576,-631.78,0.00019178,2]
[313683382,1707580232585,-500.0,0.00019178,2]
[313683384,1707580232594,-342.32466135,0.00019178,2]
[313683386,1707580232606,-157.67533865,0.00019178,2]
[313683388,1707580232616,-500.0,0.00019178,2]
[313683390,1707580232625,-1379.22,0.00019178,2]
[313683392,1707580232635,-500.96304012,0.00019178,2]
[313683394,1707580232644,-529.04348599,0.00019178,2]
[313683396,1707580232654,-389.92955709,0.00019178,2]
[313683511,1707580238494,-110.07044291,0.00019178,2]
[313683512,1707580238504,-887.23,0.00019178,2]
[313683513,1707580238513,-564.09,0.00019178,2]
[313683514,1707580238523,-299.73002939,0.00019287,2]
[313683515,1707580238533,-500.0,0.00019287,2]
[313683516,1707580238542,-631.78,0.00019287,2]
[313683517,1707580238551,-500.0,0.00019287,2]
[313683518,1707580238564,-500.0,0.00019287,2]
[313683520,1707580238573,-1379.22,0.00019287,2]
[313683522,1707580238582,-500.0,0.00019287,2]
[313683524,1707580238591,-887.23,0.00019287,2]
[313683526,1707580238600,-564.09,0.00019287,2]
[313683528,1707580238610,-500.0,0.00019397,2]
[313683530,1707580238619,-631.78,0.00019397,2]
[313683532,1707580238629,-500.0,0.00019397,2]
[313683534,1707580238639,-1379.22,0.00019397,2]
[313683536,1707580238648,-500.0,0.00019397,2]
[313683538,1707580238656,-887.23,0.00019397,2]
[313683540,1707580238666,-564.09,0.00019397,2]
[313683542,1707580238675,-151.0,0.00019397,2]
[313683544,1707580238685,-151.0,0.00019397,2]
[313683545,1707580238694,-500.0,0.00019506,2]
[313683547,1707580238703,-631.78,0.00019506,2]
[313683549,1707580238713,-500.0,0.00019506,2]
[313683551,1707580238722,-154.561332,0.00019506,2]
[313683553,1707580238731,-1379.22,0.00019506,2]
[313683555,1707580238740,-500.0,0.00019506,2]
[313683557,1707580238749,-887.23,0.00019506,2]
[313683559,1707580238758,-564.09,0.00019506,2]
[313683561,1707580238768,-151.0,0.00019506,2]
[313683563,1707580238777,-200.0,0.00019561,2]
[313683565,1707580238786,-200.0,0.00019561,2]
[313683567,1707580238795,-500.0,0.00019616,2]
[313683570,1707580238805,-227.427267,0.00019616,2]
[313683571,1707580238814,-631.78,0.00019616,2]
[313683574,1707580238824,-500.0,0.00019616,2]
[313683576,1707580238833,-1379.22,0.00019616,2]
[313683577,1707580238842,-500.0,0.00019616,2]
[313683579,1707580238851,-887.23,0.00019616,2]
[313683581,1707580238860,-564.09,0.00019616,2]
[313683583,1707580238868,-151.0,0.00019616,2]
[313683585,1707580238877,-500.0,0.00019726,2]
[313683587,1707580238887,-631.78,0.00019726,2]
[313683589,1707580238896,-500.0,0.00019726,2]
[313683591,1707580238905,-1379.22,0.00019726,2]
[313683593,1707580238914,-500.0,0.00019726,2]
[313683595,1707580238922,-887.23,0.00019726,2]
[313683597,1707580238931,-564.09,0.00019726,2]
[313683599,1707580238940,-214.197664,0.00019726,2]
[313683601,1707580238950,-456.94820564,0.00019834,2]
[313683603,1707580238958,-500.0,0.00019835,2]
[313683605,1707580238967,-631.78,0.00019835,2]
[313683607,1707580238977,-500.0,0.00019835,2]
[313683609,1707580238986,-1379.22,0.00019835,2]
[313683611,1707580238995,-500.0,0.00019835,2]
[313683613,1707580239004,-887.23,0.00019835,2]
[313683615,1707580239015,-564.09,0.00019835,2]
[313683617,1707580239025,-5957.09,0.0001989,3]
[313683619,1707580239034,-4964.24,0.0001989,3]
[313683621,1707580239044,-4136.87,0.0001989,3]
[313683623,1707580239053,-245755.95623634,0.000199,2]
[313683625,1707580239062,-631.78,0.00019945,2]
[313683628,1707580239072,-500.0,0.00019945,2]
[313683630,1707580239082,-1379.22,0.00019945,2]
[313683632,1707580239091,-500.0,0.00019945,2]
[313683634,1707580239099,-887.23,0.00019945,2]
[313683635,1707580239108,-564.09,0.00019945,2]
[313683637,1707580239118,-35219.20839597,0.00019998,2]
[313683639,1707580239128,-56621.70829762,0.0002,2]
[313683642,1707580239138,-259.80436975,0.0002,2]
[313683643,1707580239147,-324.18448095,0.0002,2]
[313683646,1707580239157,-620.03009922,0.00020018,2]
[313683662,1707580239270,-631.78,0.00020054,2]
[313683665,1707580239314,-500.0,0.00020054,2]
[313683667,1707580239323,-1379.22,0.00020054,2]
[313683669,1707580239332,-500.0,0.00020054,2]
[313683671,1707580239342,-887.23,0.00020054,2]
[313683673,1707580239351,-564.09,0.00020054,2]
[313683675,1707580239360,-631.78,0.00020164,2]
[313683677,1707580239370,-500.0,0.00020164,2]
[313683679,1707580239379,-1379.22,0.00020164,2]
[313683681,1707580239388,-290.13542041,0.00020164,2]
[313683683,1707580239397,-887.23,0.00020164,2]
[313683685,1707580239406,-564.09,0.00020164,2]
[313683687,1707580239415,-44444.0,0.00020193,2]
[313683689,1707580239424,-631.78,0.00020273,2]
[313683691,1707580239434,-500.0,0.00020273,2]
[313683693,1707580239443,-1379.22,0.00020273,2]
[313683695,1707580239452,-887.23,0.00020273,2]
[313683697,1707580239461,-564.09,0.00020273,2]
[313683699,1707580239470,-500.0,0.00020292,2]
[313683701,1707580239479,-500.0,0.00020292,2]
[313683703,1707580239488,-500.0,0.00020292,2]
[313683705,1707580239498,-500.0,0.00020292,2]
[313683707,1707580239506,-502.28564242,0.00020292,2]
[313683709,1707580239516,-500.0,0.00020292,2]
[313683711,1707580239525,-500.0,0.00020293,2]
[313683713,1707580239535,-618.97119907,0.00020293,2]
[313683715,1707580239544,-500.0,0.00020293,2]
[313683717,1707580239553,-500.0,0.00020293,2]
[313683719,1707580239565,-580.46054285,0.00020293,2]
[313683721,1707580239574,-500.0,0.00020293,2]
[313683723,1707580239583,-500.0,0.00020293,2]
[313683725,1707580239592,-406.19016172,0.00020381,2]
[313683727,1707580239602,-820.31578282,0.00020382,2]
[313683729,1707580239612,-631.78,0.00020383,2]
[313683731,1707580239621,-487.89313094,0.00020383,2]
[313683733,1707580239630,-1379.22,0.00020383,2]
[313683735,1707580239640,-887.23,0.00020383,2]
[313683737,1707580239650,-564.09,0.00020383,2]
[313683739,1707580239659,-642.7190219,0.00020401,2]
[313683741,1707580239668,-500.0,0.00020402,2]
[313683743,1707580239678,-500.0,0.00020402,2]
[313683745,1707580239688,-500.0,0.00020402,2]
[313683747,1707580239697,-500.0,0.00020402,2]
[313683749,1707580239706,-157.19916726,0.00020402,2]
[313683751,1707580239715,-19138.64568776,0.00020483,2]
[313683753,1707580239724,-151.0,0.00020491,2]
[313683755,1707580239733,-631.78,0.00020493,2]
[313683757,1707580239742,-1379.22,0.00020493,2]
[313683759,1707580239750,-887.23,0.00020493,2]
[313683761,1707580239759,-564.09,0.00020493,2]
[313683763,1707580239768,-537.77034027,0.00020502,2]
[313683765,1707580239778,-500.0,0.00020511,2]
[313683767,1707580239787,-500.0,0.00020512,2]
[313683769,1707580239797,-505.54337339,0.00020512,2]
[313683771,1707580239806,-631.78,0.00020602,2]
[313683772,1707580239816,-1379.22,0.00020602,2]
[313683774,1707580239825,-887.23,0.00020602,2]
[313683776,1707580239834,-564.09,0.00020602,2]
[313683778,1707580239843,-546.34328474,0.00020621,2]
[313683780,1707580239852,-500.0,0.00020621,2]
[313683782,1707580239861,-20959.18700142,0.0002069,2]
[313683784,1707580239870,-249.25233978,0.00020691,2]
[313683786,1707580239880,-631.78,0.00020712,2]
[313683788,1707580239889,-1379.22,0.00020712,2]
[313683790,1707580239898,-887.23,0.00020712,2]
[313683792,1707580239907,-564.09,0.00020712,2]
[313683795,1707580239916,-500.0,0.00020731,2]
[313683798,1707580239926,-14933.09172747,0.000208,2]
[313683801,1707580239934,-4178.5671242,0.000208,2]
[313683804,1707580239943,-9932.53422075,0.000208,2]
[313683807,1707580239952,-20415.38683519,0.000208,2]
[313683995,1707580241682,-155.07753877,0.00017665,2]
[313683996,1707580241692,-15002.98977302,0.000208,2]
[313683997,1707580241700,-5000.0,0.000208,2]
[313683998,1707580241709,-4489.33929032,0.000208,2]
[313683999,1707580241718,-5000.0,0.000208,2]
[313684000,1707580241727,-24973.15980369,0.00020802,2]
[313684001,1707580241739,-4777.1516035,0.00020802,2]
[313684003,1707580241750,-2509.66153982,0.00020802,2]
[313684005,1707580241761,-17740.02705299,0.00020802,2]
[313684007,1707580241770,-167.54558006,0.00020804,2]
[313684009,1707580241780,-1020.56416087,0.00020804,2]
[313684011,1707580241790,-4060.87302653,0.00020805,2]
[313684013,1707580241799,-5000.0,0.00020807,2]
[313684016,1707580241808,-12249.94803463,0.00020807,2]
[313684019,1707580241830,-5000.0,0.00020807,2]
[313684021,1707580241840,-6282.59436581,0.00020807,2]
[313684023,1707580241850,-631.78,0.00020821,2]
[313684025,1707580241860,-1379.22,0.00020821,2]
[313684027,1707580241869,-887.23,0.00020821,2]
[313684029,1707580241879,-564.09,0.00020821,2]
[313684031,1707580241888,-500.0,0.00020822,2]
[313684033,1707580241898,-506.8901696,0.00020822,2]
[313684035,1707580241907,-500.0,0.00020822,2]
[313684037,1707580241917,-602.74394297,0.00020822,2]
[313684039,1707580241927,-500.0,0.00020822,2]
[313684041,1707580241936,-500.0,0.00020822,2]
[313684043,1707580241946,-500.0,0.00020822,2]
[313684045,1707580241956,-500.0,0.00020822,2]
[313684047,1707580241965,-500.0,0.00020822,2]
[313684049,1707580241975,-500.0,0.00020822,2]
[313684051,1707580241984,-500.0,0.00020822,2]
[313684053,1707580241994,-270.69573105,0.00020822,2]
[313684056,1707580242003,-504.1449074,0.00020822,2]
[313684058,1707580242013,-500.0,0.00020822,2]
[313684060,1707580242022,-500.0,0.00020822,2]
[313684062,1707580242032,-500.0,0.00020822,2]
[313684064,1707580242042,-500.0,0.00020822,2]
[313684066,1707580242051,-500.0,0.00020822,2]
[313684068,1707580242060,-500.0,0.00020822,2]
[313684070,1707580242069,-153.32361205,0.00020822,2]
[313684072,1707580242079,-160.76069716,0.00020822,2]
[313684074,1707580242088,-599.95297526,0.00020822,2]
[313684076,1707580242098,-500.0,0.00020822,2]
[313684078,1707580242108,-500.0,0.00020822,2]
[313684080,1707580242117,-500.0,0.00020822,2]
[313684082,1707580242126,-500.0,0.00020822,2]
[313684083,1707580242135,-500.0,0.00020822,2]
[313684086,1707580242144,-633.95404112,0.00020822,2]
[313684088,1707580242153,-500.0,0.00020822,2]
[313684090,1707580242162,-500.0,0.00020822,2]
[313684092,1707580242172,-500.0,0.00020822,2]
[313684094,1707580242182,-500.0,0.00020822,2]
[313684096,1707580242191,-500.0,0.00020822,2]
[313684098,1707580242200,-500.0,0.00020822,2]
[313684100,1707580242209,-195.10278485,0.00020822,2]
[313684102,1707580242217,-500.0,0.00020822,2]
[313684104,1707580242226,-500.0,0.00020822,2]
[313684106,1707580242235,-500.0,0.00020822,2]
[313684108,1707580242244,-300.0,0.00020822,2]
[313684110,1707580242256,-500.0,0.00020822,2]
[313684112,1707580242265,-500.0,0.00020822,2]
[313684114,1707580242274,-500.0,0.00020822,2]
[313684115,1707580242283,-500.0,0.00020822,2]
[313684118,1707580242292,-500.0,0.00020822,2]
[313684120,1707580242302,-500.0,0.00020822,2]
[313684122,1707580242311,-500.0,0.00020822,2]
[313684124,1707580242320,-500.0,0.00020822,2]
[313684126,1707580242329,-500.0,0.00020822,2]
[313684128,1707580242339,-500.0,0.00020822,2]
[313684130,1707580242348,-500.0,0.00020822,2]
[313684132,1707580242357,-119.03661974,0.00020822,2]
[313684160,1707580242610,-380.96338026,0.00020822,2]
[313684162,1707580242619,-500.0,0.00020822,2]
[313684163,1707580242628,-364.67390336,0.00020822,2]
[313684166,1707580242638,-500.0,0.00020822,2]
[313684167,1707580242649,-500.0,0.00020822,2]
[313684170,1707580242659,-500.0,0.00020822,2]
[313684172,1707580242668,-500.0,0.00020822,2]
[313684174,1707580242677,-310.49663337,0.00020822,2]
[313684176,1707580242687,-500.0,0.00020822,2]
[313684178,1707580242696,-500.0,0.00020822,2]
[313684180,1707580242705,-456.96943335,0.00020822,2]
[313684182,1707580242714,-500.0,0.00020822,2]
[313684184,1707580242723,-500.0,0.00020822,2]
[313684186,1707580242733,-500.0,0.00020822,2]
[313684188,1707580242742,-500.0,0.00020822,2]
[313684190,1707580242752,-500.0,0.00020822,2]
[313684192,1707580242761,-500.0,0.00020822,2]
[313684193,1707580242770,-500.0,0.00020822,2]
[313684195,1707580242779,-500.0,0.00020822,2]
[313684197,1707580242789,-233.41179484,0.00020822,2]
[313684199,1707580242798,-241.27921433,0.00020822,2]
[313684202,1707580242814,-58.72078567,0.00020822,2]
[313684204,1707580242823,-500.0,0.00020822,2]
[313684206,1707580242832,-500.0,0.00020822,2]
[313684208,1707580242841,-500.0,0.00020822,2]
[313684210,1707580242850,-500.0,0.00020822,2]
[313684212,1707580242860,-500.0,0.00020822,2]
[313684214,1707580242869,-500.0,0.00020822,2]
[313684216,1707580242878,-500.0,0.00020822,2]
[313684218,1707580242888,-650.0,0.00020822,2]
[313684220,1707580242897,-500.0,0.00020822,2]
[313684221,1707580242907,-500.0,0.00020822,2]
[313684222,1707580242916,-500.0,0.00020822,2]
[313684223,1707580242926,-500.0,0.00020822,2]
[313684224,1707580242935,-500.0,0.00020822,2]
[313684225,1707580242944,-500.0,0.00020822,2]
[313684226,1707580242954,-500.0,0.00020822,2]
[313684227,1707580242965,-500.0,0.00020822,2]
[313684228,1707580242976,-500.0,0.00020822,2]
[313684229,1707580242986,-500.0,0.00020822,2]
[313684230,1707580242995,-500.0,0.00020822,2]
[313684231,1707580243005,-500.0,0.00020822,2]
[313684232,1707580243014,-500.0,0.00020822,2]
[313684233,1707580243024,-500.0,0.00020822,2]
[313684234,1707580243033,-500.0,0.00020822,2]
[313684235,1707580243042,-500.0,0.00020822,2]
[313684236,1707580243052,-500.0,0.00020822,2]
[313684237,1707580243061,-500.0,0.00020822,2]
[313684238,1707580243070,-500.0,0.00020822,2]
[313684239,1707580243079,-211.2818655,0.00020822,2]
[313684241,1707580243088,-500.0,0.00020822,2]
[313684242,1707580243098,-500.0,0.00020822,2]
[313684243,1707580243107,-500.0,0.00020822,2]
[313684244,1707580243116,-500.0,0.00020822,2]
[313684245,1707580243126,-500.0,0.00020822,2]
[313684247,1707580243135,-500.0,0.00020822,2]
[313684248,1707580243144,-500.0,0.00020822,2]
[313684249,1707580243153,-500.0,0.00020822,2]
[313684251,1707580243163,-500.0,0.00020822,2]
[313684253,1707580243173,-500.0,0.00020822,2]
[313684255,1707580243185,-500.0,0.00020822,2]
[313684256,1707580243194,-500.0,0.00020822,2]
[313684257,1707580243203,-500.0,0.00020822,2]
[313684258,1707580243213,-500.0,0.00020822,2]
[313684259,1707580243222,-500.0,0.00020822,2]
[313684260,1707580243231,-500.0,0.00020822,2]
[313684261,1707580243241,-500.0,0.00020822,2]
[313684262,1707580243250,-500.0,0.00020822,2]
[313684263,1707580243260,-500.0,0.00020822,2]
[313684264,1707580243269,-500.0,0.00020822,2]
[313684265,1707580243278,-500.0,0.00020822,2]
[313684266,1707580243288,-500.0,0.00020822,2]
[313684267,1707580243298,-500.0,0.00020822,2]
[313684268,1707580243307,-500.0,0.00020822,2]
[313684269,1707580243316,-500.0,0.00020822,2]
[313684270,1707580243325,-500.0,0.00020822,2]
[313684271,1707580243335,-500.0,0.00020822,2]
[313684272,1707580243345,-500.0,0.00020822,2]
[313684273,1707580243354,-755.10182635,0.00020822,2]
[313684274,1707580243363,-755.10182635,0.00020822,2]
[313684275,1707580243372,-755.10182635,0.00020822,2]
[313684276,1707580243382,-755.10182635,0.00020822,2]
[313684277,1707580243391,-755.10182635,0.00020822,2]
[313684278,1707580243400,-755.10182635,0.00020822,2]
[313684279,1707580243410,-755.10182635,0.00020822,2]
[313684280,1707580243419,-755.10182635,0.00020822,2]
[313684281,1707580243428,-755.10182635,0.00020822,2]
[313684282,1707580243438,-755.10182635,0.00020822,2]
[313684283,1707580243447,-755.10182635,0.00020822,2]
[313684284,1707580243456,-755.10182635,0.00020822,2]
[313684285,1707580243465,-755.10182635,0.00020822,2]